fUST/lending_fUST_20250719
["ID","MTS","AMOUNT","RATE_DAILY","PERIOD"]
[373156146,1752887460905,-559.02,0.00017808,2]
[373156147,1752887460922,-460.0,0.00017808,2]
[373156148,1752887460937,-460.0,0.00017808,2]
[373156149,1752887460951,-770.38,0.00017808,2]
[373156150,1752887460966,-460.0,0.00017808,2]
[373156151,1752887460981,-480.33,0.00017808,2]
[373156152,1752887460996,-526.17,0.00017808,2]
[373156153,1752887461011,-460.0,0.00017808,2]
[373156154,1752887461026,-460.0,0.00017808,2]
[373156155,1752887461040,-460.0,0.00017808,2]
[373156156,1752887461055,-460.0,0.00017808,2]
[373156157,1752887461070,-460.0,0.00017808,2]
[373156158,1752887461085,-460.0,0.00017808,2]
[373156159,1752887461196,-460.0,0.00017808,2]
[373156160,1752887461207,-460.0,0.00017808,2]
[373156161,1752887461217,-460.0,0.00017808,2]
[373156162,1752887461227,-460.0,0.00017808,2]
[373156163,1752887461236,-460.0,0.00017808,2]
[373156164,1752887461246,-460.0,0.00017808,2]
[373156165,1752887461256,-460.0,0.00017808,2]
[373156166,1752887461266,-508.05684862,0.00017808,2]
[373156167,1752887461276,-460.0,0.00017808,2]
[373156168,1752887461285,-460.0,0.00017808,2]
[373156169,1752887461295,-460.0,0.00017808,2]
[373156170,1752887461305,-460.0,0.00017808,2]
[373156171,1752887461314,-460.0,0.00017808,2]
[373156172,1752887461324,-490.15,0.00017808,2]
[373156173,1752887461333,-460.0,0.00017808,2]
[373156174,1752887461343,-465.31507562,0.00017808,2]
[373156175,1752887461357,-460.0,0.00017808,2]
[373156176,1752887461367,-460.0,0.00017808,2]
[373156177,1752887461377,-460.0,0.00017808,2]
[373156178,1752887461386,-460.0,0.00017808,2]
[373156179,1752887461396,-460.0,0.00017808,2]
[373156180,1752887461406,-460.0,0.00017808,2]
[373156181,1752887461416,-460.0,0.00017808,2]
[373156182,1752887461426,-151.0,0.00017808,2]
[373156183,1752887461436,-460.0,0.00017808,2]
[373156184,1752887461447,-460.0,0.00017808,2]
[373156185,1752887461457,-460.0,0.00017808,2]
[373156186,1752887461467,-460.0,0.00017808,2]
[373156187,1752887461476,-684.73,0.00017808,2]
[373156188,1752887461487,-151.0,0.00017808,2]
[373156189,1752887461496,-460.0,0.00017808,2]
[373156190,1752887461506,-460.0,0.00017808,2]
[373156191,1752887461516,-460.0,0.00017808,2]
[373156192,1752887461526,-460.0,0.00017808,2]
[373156193,1752887461537,-460.0,0.00017808,2]
[373156194,1752887461547,-460.0,0.00017808,2]
[373156195,1752887461558,-541.94641902,0.00017808,2]
[373156196,1752887461568,-460.0,0.00017808,2]
[373156197,1752887461578,-460.0,0.00017808,2]
[373156198,1752887461588,-460.0,0.00017808,2]
[373156199,1752887461598,-460.0,0.00017808,2]
[373156200,1752887461610,-460.0,0.00017808,2]
[373156201,1752887461620,-460.0,0.00017808,2]
[373156202,1752887461630,-477.78776284,0.00017808,2]
[373156203,1752887461640,-460.0,0.00017808,2]
[373156204,1752887461650,-460.0,0.00017808,2]
[373156205,1752887461660,-1489.34,0.00017808,2]
[373156206,1752887461671,-460.0,0.00017808,2]
[373156207,1752887461681,-1088.39,0.00017808,2]
[373156208,1752887461692,-460.0,0.00017808,2]
[373156209,1752887461702,-460.0,0.00017808,2]
[373156210,1752887461713,-460.0,0.00017808,2]
[373156211,1752887461722,-460.0,0.00017808,2]
[373156212,1752887461732,-460.0,0.00017808,2]
[373156213,1752887461742,-460.0,0.00017808,2]
[373156214,1752887461752,-460.0,0.00017808,2]
[373156215,1752887461762,-460.0,0.00017808,2]
[373156216,1752887461776,-460.0,0.00017808,2]
[373156217,1752887461788,-460.0,0.00017808,2]
[373156218,1752887461798,-460.0,0.00017808,2]
[373156219,1752887461810,-1565.75,0.00017808,2]
[373156220,1752887461820,-460.0,0.00017808,2]
[373156221,1752887461830,-460.0,0.00017808,2]
[373156222,1752887461840,-460.0,0.00017808,2]
[373156223,1752887461850,-460.0,0.00017808,2]
[373156224,1752887461864,-495.6983695,0.00017808,2]
[373156225,1752887461873,-460.0,0.00017808,2]
[373156226,1752887461883,-460.0,0.00017808,2]
[373156227,1752887461893,-588.54173611,0.00017808,2]
[373156228,1752887461904,-257.11288267,0.00017808,2]
[373156229,1752887461914,-1848.28,0.00017808,2]
[373156230,1752887461923,-460.0,0.00017808,2]
[373156231,1752887461933,-2148.2,0.00017808,2]
[373156232,1752887461943,-482.44,0.00017808,2]
[373156233,1752887461952,-464.92,0.00017808,2]
[373156234,1752887461962,-460.0,0.00017808,2]
[373156235,1752887461972,-460.0,0.00017808,2]
[373156236,1752887461981,-518.51,0.00017808,2]
[373156237,1752887461991,-460.0,0.00017808,2]
[373156238,1752887462000,-545.24,0.00017808,2]
[373156239,1752887462010,-460.0,0.00017808,2]
[373156240,1752887462020,-467.88795714,0.00017808,2]
[373156241,1752887462030,-460.0,0.00017808,2]
[373156242,1752887462041,-460.0,0.00017808,2]
[373156243,1752887462051,-460.0,0.00017808,2]
[373156244,1752887462063,-460.0,0.00017808,2]
[373156245,1752887462073,-460.0,0.00017808,2]
[373156246,1752887462083,-3362.66,0.00017808,2]
[373156247,1752887462094,-460.0,0.00017808,2]
[373156248,1752887462105,-460.0,0.00017808,2]
[373156249,1752887462115,-460.0,0.00017808,2]
[373156250,1752887462124,-477.85,0.00017808,2]
[373156251,1752887462134,-460.0,0.00017808,2]
[373156252,1752887462143,-460.0,0.00017808,2]
[373156253,1752887462153,-460.0,0.00017808,2]
[373156254,1752887462162,-460.0,0.00017808,2]
[373156255,1752887462173,-838.3,0.00017808,2]
[373156256,1752887462185,-151.0,0.00017808,2]
[373156257,1752887462197,-460.0,0.00017808,2]
[373156258,1752887462207,-579.24,0.00017808,2]
[373156259,1752887462218,-460.0,0.00017808,2]
[373156260,1752887462228,-460.0,0.00017808,2]
[373156261,1752887462238,-460.0,0.00017808,2]
[373156262,1752887462250,-460.0,0.00017808,2]
[373156263,1752887462261,-460.0,0.00017808,2]
[373156264,1752887462274,-460.0,0.00017808,2]
[373156265,1752887462285,-460.0,0.00017808,2]
[373156266,1752887462296,-460.0,0.00017808,2]
[373156267,1752887462306,-610.12,0.00017808,2]
[373156268,1752887462316,-460.0,0.00017808,2]
[373156269,1752887462326,-460.0,0.00017808,2]
[373156270,1752887462336,-515.52,0.00017808,2]
[373156271,1752887462346,-460.0,0.00017808,2]
[373156272,1752887462425,-503.83,0.00017808,2]
[373156273,1752887462435,-460.0,0.00017808,2]
[373156274,1752887462446,-487.24,0.00017808,2]
[373156275,1752887462456,-4489.86,0.00017808,2]
[373156276,1752887462466,-460.0,0.00017808,2]
[373156277,1752887462478,-460.0,0.00017808,2]
[373156278,1752887462488,-460.0,0.00017808,2]
[373156279,1752887462498,-460.0,0.00017808,2]
[373156280,1752887462509,-460.0,0.00017808,2]
[373156281,1752887462520,-290.266198,0.00017808,2]
[373156282,1752887462529,-666.5,0.00017808,2]
[373156283,1752887462539,-622.41,0.00017808,2]
[373156284,1752887462549,-290.266198,0.00017808,2]
[373156285,1752887462559,-460.0,0.00017808,2]
[373156286,1752887462569,-460.0,0.00017808,2]
[373156287,1752887462579,-2494.33,0.00017808,2]
[373156288,1752887462589,-592.03,0.00017808,2]
[373156289,1752887462599,-151.0,0.00017808,2]
[373156290,1752887462612,-460.0,0.00017808,2]
[373156291,1752887462622,-151.0,0.00017808,2]
[373156292,1752887462632,-284.02333087,0.00017808,2]
[373156293,1752887462642,-460.0,0.00017808,2]
[373156294,1752887462651,-781.0,0.00017808,2]
[373156295,1752887462661,-1924.42,0.00017808,2]
[373156296,1752887462671,-777.69,0.00017808,2]
[373156297,1752887462682,-496.74,0.00017808,2]
[373156298,1752887462702,-250.255223,0.00017808,2]
[373156299,1752887462713,-151.0,0.00017808,2]
[373156300,1752887462722,-460.0,0.00017808,2]
[373156301,1752887462731,-460.0,0.00017808,2]
[373156302,1752887462740,-494.0,0.00017808,2]
[373156303,1752887462750,-460.0,0.00017808,2]
[373156304,1752887462759,-1019.11,0.00017808,2]
[373156305,1752887462768,-460.0,0.00017808,2]
[373156306,1752887462781,-460.0,0.00017808,2]
[373156307,1752887462791,-460.0,0.00017808,2]
[373156308,1752887462800,-564.63,0.00017808,2]
[373156309,1752887462810,-556.53,0.00017808,2]
[373156310,1752887462819,-541.96,0.00017808,2]
[373156311,1752887462830,-460.0,0.00017808,2]
[373156312,1752887462840,-460.0,0.00017808,2]
[373156313,1752887462850,-460.0,0.00017808,2]
[373156314,1752887462863,-1447.51,0.00017808,2]
[373156315,1752887462873,-460.0,0.00017808,2]
[373156316,1752887462882,-460.0,0.00017808,2]
[373156317,1752887462891,-460.0,0.00017808,2]
[373156318,1752887462900,-460.0,0.00017808,2]
[373156319,1752887462909,-635.79,0.00017808,2]
[373156320,1752887462919,-460.0,0.00017808,2]
[373156321,1752887462931,-460.0,0.00017808,2]
[373156322,1752887462944,-1371.73,0.00017808,2]
[373156323,1752887462955,-460.0,0.00017808,2]
[373156324,1752887462966,-1999.99,0.00017808,2]
[373156325,1752887462976,-4634.36,0.00017808,2]
[373156326,1752887462988,-460.0,0.00017808,2]
[373156327,1752887462997,-460.0,0.00017808,2]
[373156328,1752887463007,-460.0,0.00017808,2]
[373156329,1752887463016,-2972.84,0.00017808,2]
[373156330,1752887463026,-460.0,0.00017808,2]
[373156331,1752887463035,-551.48,0.00017808,2]
[373156332,1752887463045,-460.0,0.00017808,2]
[373156333,1752887463054,-460.0,0.00017808,2]
[373156334,1752887463064,-460.0,0.00017808,2]
[373156335,1752887463074,-460.0,0.00017808,2]
[373156336,1752887463083,-692.09,0.00017808,2]
[373156337,1752887463093,-340.77234843,0.00017811,2]
[373156338,1752887463105,-500.0,0.00017811,2]
[373156339,1752887463115,-1013.56099784,0.00017868,2]
[373156340,1752887463125,-500.0,0.00017868,2]
[373156341,1752887463135,-1500.0,0.00017868,2]
[373156342,1752887463145,-2636.49776508,0.000179,2]
[373156343,1752887463156,-500.0,0.00017927,2]
[373156344,1752887463166,-1000.0,0.00017927,2]
[373156345,1752887463176,-1000.0,0.00017948,2]
[373156346,1752887463186,-1680.0,0.00017952,2]
[373156347,1752887463196,-420.0,0.00017963,2]
[373156348,1752887463206,-228.11352469,0.00017965,2]
[373156349,1752887463216,-501.15243991,0.00018068,2]
[373156350,1752887463226,-1500.0,0.00018068,2]
[373156351,1752887463237,-1500.0,0.00018068,2]
[373156352,1752887463246,-500.0,0.00018068,2]
[373156353,1752887463256,-910.45934692,0.00018068,2]
[373156354,1752887463266,-617.91842792,0.00018076,2]
[373156355,1752887463276,-500.0,0.00018076,2]
[373156356,1752887463285,-500.0,0.00018076,2]
[373156357,1752887463295,-500.0,0.00018076,2]
[373156358,1752887463306,-606.32,0.00018081,2]
[373156359,1752887463315,-460.0,0.00018082,2]
[373156360,1752887463325,-828.36,0.00018082,2]
[373156361,1752887463335,-460.0,0.00018082,2]
[373156362,1752887463344,-460.0,0.00018082,2]
[373156363,1752887463355,-460.0,0.00018082,2]
[373156364,1752887463364,-460.0,0.00018082,2]
[373156365,1752887463374,-460.0,0.00018082,2]
[373156366,1752887463383,-460.0,0.00018082,2]
[373156367,1752887463392,-460.0,0.00018082,2]
[373156368,1752887463401,-460.0,0.00018082,2]
[373156369,1752887463411,-460.0,0.00018082,2]
[373156370,1752887463419,-460.0,0.00018082,2]
[373156371,1752887463428,-524.31,0.00018082,2]
[373156372,1752887463437,-460.0,0.00018082,2]
[373156373,1752887463446,-460.0,0.00018082,2]
[373156374,1752887463455,-460.0,0.00018082,2]
[373156375,1752887463464,-460.0,0.00018082,2]
[373156376,1752887463473,-460.0,0.00018082,2]
[373156377,1752887463482,-460.0,0.00018082,2]
[373156378,1752887463490,-460.0,0.00018082,2]
[373156379,1752887463499,-460.0,0.00018082,2]
[373156380,1752887463508,-460.0,0.00018082,2]
[373156381,1752887463518,-460.0,0.00018082,2]
[373156382,1752887463527,-460.0,0.00018082,2]
[373156383,1752887463536,-460.0,0.00018082,2]
[373156384,1752887463546,-460.0,0.00018082,2]
[373156385,1752887463555,-460.0,0.00018082,2]
[373156386,1752887463565,-460.0,0.00018082,2]
[373156387,1752887463574,-460.0,0.00018082,2]
[373156388,1752887463583,-460.0,0.00018082,2]
[373156389,1752887463592,-460.0,0.00018082,2]
[373156390,1752887463602,-460.0,0.00018082,2]
[373156391,1752887463613,-460.0,0.00018082,2]
[373156392,1752887463622,-460.0,0.00018082,2]
[373156393,1752887463631,-460.0,0.00018082,2]
[373156394,1752887463641,-460.0,0.00018082,2]
[373156395,1752887463651,-460.0,0.00018082,2]
[373156396,1752887463671,-460.0,0.00018082,2]
[373156397,1752887463681,-460.0,0.00018082,2]
[373156398,1752887463691,-460.0,0.00018082,2]
[373156399,1752887463700,-460.0,0.00018082,2]
[373156400,1752887463710,-460.0,0.00018082,2]
[373156401,1752887463720,-460.0,0.00018082,2]
[373156402,1752887463730,-460.0,0.00018082,2]
[373156403,1752887463740,-460.0,0.00018082,2]
[373156404,1752887463750,-460.0,0.00018082,2]
[373156405,1752887463760,-460.0,0.00018082,2]
[373156406,1752887463771,-559.02,0.00018082,2]
[373156407,1752887463783,-460.0,0.00018082,2]
[373156408,1752887463793,-460.0,0.00018082,2]
[373156409,1752887463802,-770.38,0.00018082,2]
[373156410,1752887463811,-460.0,0.00018082,2]
[373156411,1752887463822,-480.33,0.00018082,2]
[373156412,1752887463831,-526.17,0.00018082,2]
[373156413,1752887463841,-432.60563048,0.00018082,2]
[373156414,1752887463852,-460.0,0.00018082,2]
[373156415,1752887463864,-460.0,0.00018082,2]
[373156416,1752887463874,-460.0,0.00018082,2]
[373156417,1752887463883,-460.0,0.00018082,2]
[373156418,1752887463893,-460.0,0.00018082,2]
[373156419,1752887463903,-460.0,0.00018082,2]
[373156420,1752887463912,-460.0,0.00018082,2]
[373156421,1752887463923,-468.32780483,0.00018082,2]
[373156422,1752887463933,-460.0,0.00018082,2]
[373156423,1752887463942,-460.0,0.00018082,2]
[373156424,1752887463952,-151.0,0.00018082,2]
[373156425,1752887463961,-460.0,0.00018082,2]
[373156426,1752887463971,-460.0,0.00018082,2]
[373156427,1752887463980,-460.0,0.00018082,2]
[373156428,1752887463990,-460.0,0.00018082,2]
[373156429,1752887463999,-255.05494147,0.00018082,2]
[373156430,1752887464008,-460.0,0.00018082,2]
[373156431,1752887464018,-490.15,0.00018082,2]
[373156432,1752887464027,-460.0,0.00018082,2]
[373156433,1752887464037,-460.0,0.00018082,2]
[373156434,1752887464046,-460.0,0.00018082,2]
[373156435,1752887464056,-460.0,0.00018082,2]
[373156436,1752887464065,-460.0,0.00018082,2]
[373156437,1752887464075,-460.0,0.00018082,2]
[373156438,1752887464084,-460.0,0.00018082,2]
[373156439,1752887464093,-460.0,0.00018082,2]
[373156440,1752887464103,-460.0,0.00018082,2]
[373156441,1752887464116,-460.0,0.00018082,2]
[373156442,1752887464125,-460.0,0.00018082,2]
[373156443,1752887464135,-684.73,0.00018082,2]
[373156444,1752887464144,-460.0,0.00018082,2]
[373156445,1752887464154,-151.0,0.00018082,2]
[373156446,1752887464163,-460.0,0.00018082,2]
[373156447,1752887464173,-460.0,0.00018082,2]
[373156448,1752887464183,-460.0,0.00018082,2]
[373156449,1752887464193,-460.0,0.00018082,2]
[373156450,1752887464204,-460.0,0.00018082,2]
[373156451,1752887464215,-460.0,0.00018082,2]
[373156452,1752887464226,-460.0,0.00018082,2]
[373156453,1752887464237,-460.0,0.00018082,2]
[373156454,1752887464249,-460.0,0.00018082,2]
[373156455,1752887464259,-460.0,0.00018082,2]
[373156456,1752887464269,-460.0,0.00018082,2]
[373156457,1752887464280,-1489.34,0.00018082,2]
[373156458,1752887464291,-583.01,0.00018082,2]
[373156459,1752887464301,-1088.39,0.00018082,2]
[373156460,1752887464312,-460.0,0.00018082,2]
[373156461,1752887464323,-460.0,0.00018082,2]
[373156462,1752887464334,-460.0,0.00018082,2]
[373156463,1752887464344,-460.0,0.00018082,2]
[373156464,1752887464353,-460.0,0.00018082,2]
[373156465,1752887464364,-460.0,0.00018082,2]
[373156466,1752887464374,-460.0,0.00018082,2]
[373156467,1752887464384,-460.0,0.00018082,2]
[373156468,1752887464394,-460.0,0.00018082,2]
[373156469,1752887464403,-460.0,0.00018082,2]
[373156470,1752887464413,-1565.75,0.00018082,2]
[373156471,1752887464422,-460.0,0.00018082,2]
[373156472,1752887464432,-460.0,0.00018082,2]
[373156473,1752887464442,-460.0,0.00018082,2]
[373156474,1752887464452,-460.0,0.00018082,2]
[373156475,1752887464461,-460.0,0.00018082,2]
[373156476,1752887464471,-460.0,0.00018082,2]
[373156477,1752887464480,-1848.28,0.00018082,2]
[373156478,1752887464490,-460.0,0.00018082,2]
[373156479,1752887464500,-2148.2,0.00018082,2]
[373156480,1752887464509,-482.44,0.00018082,2]
[373156481,1752887464519,-464.92,0.00018082,2]
[373156482,1752887464529,-460.0,0.00018082,2]
[373156483,1752887464539,-460.0,0.00018082,2]
[373156484,1752887464548,-518.51,0.00018082,2]
[373156485,1752887464559,-460.0,0.00018082,2]
[373156486,1752887464568,-545.24,0.00018082,2]
[373156487,1752887464578,-460.0,0.00018082,2]
[373156488,1752887464588,-460.0,0.00018082,2]
[373156489,1752887464598,-460.0,0.00018082,2]
[373156490,1752887464610,-460.0,0.00018082,2]
[373156491,1752887464620,-3362.66,0.00018082,2]
[373156492,1752887464630,-297.8307181,0.00018082,2]
[373156493,1752887464639,-460.0,0.00018082,2]
[373156494,1752887464649,-460.0,0.00018082,2]
[373156495,1752887464659,-460.0,0.00018082,2]
[373156496,1752887464669,-477.85,0.00018082,2]
[373156497,1752887464679,-460.0,0.00018082,2]
[373156498,1752887464688,-460.0,0.00018082,2]
[373156499,1752887464698,-460.0,0.00018082,2]
[373156500,1752887464707,-838.3,0.00018082,2]
[373156501,1752887464718,-579.24,0.00018082,2]
[373156502,1752887464728,-460.0,0.00018082,2]
[373156503,1752887464738,-460.0,0.00018082,2]
[373156504,1752887464748,-460.0,0.00018082,2]
[373156505,1752887464758,-392.21941295,0.00018082,2]
[373156506,1752887464768,-460.0,0.00018082,2]
[373156507,1752887464780,-460.0,0.00018082,2]
[373156508,1752887464790,-460.0,0.00018082,2]
[373156509,1752887464800,-610.12,0.00018082,2]
[373156510,1752887464810,-460.0,0.00018082,2]
[373156511,1752887464912,-460.0,0.00018082,2]
[373156512,1752887464923,-515.52,0.00018082,2]
[373156513,1752887464933,-460.0,0.00018082,2]
[373156514,1752887464943,-503.83,0.00018082,2]
[373156515,1752887464953,-460.0,0.00018082,2]
[373156516,1752887464963,-487.24,0.00018082,2]
[373156517,1752887464974,-4489.86,0.00018082,2]
[373156518,1752887464985,-460.0,0.00018082,2]
[373156519,1752887464996,-460.0,0.00018082,2]
[373156520,1752887465007,-460.0,0.00018082,2]
[373156521,1752887465018,-460.0,0.00018082,2]
[373156522,1752887465029,-460.0,0.00018082,2]
[373156523,1752887465040,-666.5,0.00018082,2]
[373156524,1752887465051,-622.41,0.00018082,2]
[373156525,1752887465061,-460.0,0.00018082,2]
[373156526,1752887465073,-548.87364577,0.00018082,2]
[373156527,1752887465083,-2494.33,0.00018082,2]
[373156528,1752887465095,-592.03,0.00018082,2]
[373156529,1752887465108,-460.0,0.00018082,2]
[373156530,1752887465118,-460.0,0.00018082,2]
[373156531,1752887465129,-781.0,0.00018082,2]
[373156532,1752887465138,-1924.42,0.00018082,2]
[373156533,1752887465148,-777.69,0.00018082,2]
[373156534,1752887465158,-496.74,0.00018082,2]
[373156535,1752887465168,-460.0,0.00018082,2]
[373156536,1752887465177,-494.0,0.00018082,2]
[373156537,1752887465186,-460.0,0.00018082,2]
[373156538,1752887465196,-1019.11,0.00018082,2]
[373156539,1752887465205,-460.0,0.00018082,2]
[373156540,1752887465216,-564.63,0.00018082,2]
[373156541,1752887465225,-556.53,0.00018082,2]
[373156542,1752887465234,-541.96,0.00018082,2]
[373156543,1752887465244,-460.0,0.00018082,2]
[373156544,1752887465253,-460.0,0.00018082,2]
[373156545,1752887465262,-460.0,0.00018082,2]
[373156546,1752887465271,-1447.51,0.00018082,2]
[373156547,1752887465281,-460.0,0.00018082,2]
[373156548,1752887465290,-466.39391545,0.00018082,2]
[373156549,1752887465300,-460.0,0.00018082,2]
[373156550,1752887465310,-460.0,0.00018082,2]
[373156551,1752887465319,-635.79,0.00018082,2]
[373156552,1752887465330,-460.0,0.00018082,2]
[373156553,1752887465340,-460.0,0.00018082,2]
[373156554,1752887465351,-1371.73,0.00018082,2]
[373156555,1752887465363,-460.0,0.00018082,2]
[373156556,1752887465372,-1999.99,0.00018082,2]
[373156557,1752887465382,-4634.36,0.00018082,2]
[373156558,1752887465391,-460.0,0.00018082,2]
[373156559,1752887465401,-460.0,0.00018082,2]
[373156560,1752887465410,-460.0,0.00018082,2]
[373156561,1752887465421,-2972.84,0.00018082,2]
[373156562,1752887465433,-460.0,0.00018082,2]
[373156563,1752887465444,-551.48,0.00018082,2]
[373156564,1752887465453,-460.0,0.00018082,2]
[373156565,1752887465463,-480.71,0.00018082,2]
[373156566,1752887465474,-460.0,0.00018082,2]
[373156567,1752887465484,-460.0,0.00018082,2]
[373156568,1752887465494,-692.09,0.00018082,2]
[373156569,1752887465504,-2636.49776504,0.00018141,2]
[373156570,1752887465514,-1298.08837098,0.00018256,2]
[373156571,1752887465523,-1000.0,0.0001834,2]
[373156572,1752887465533,-606.32,0.00018355,2]
[373156573,1752887465543,-460.0,0.00018356,2]
[373156574,1752887465554,-828.36,0.00018356,2]
[373156575,1752887465563,-460.0,0.00018356,2]
[373156576,1752887465573,-460.0,0.00018356,2]
[373156577,1752887465582,-460.0,0.00018356,2]
[373156578,1752887465592,-460.0,0.00018356,2]
[373156580,1752887465601,-460.0,0.00018356,2]
[373156581,1752887465612,-460.0,0.00018356,2]
[373156582,1752887465622,-460.0,0.00018356,2]
[373156583,1752887465631,-460.0,0.00018356,2]
[373156584,1752887465641,-460.0,0.00018356,2]
[373156585,1752887465650,-460.0,0.00018356,2]
[373156586,1752887465660,-524.31,0.00018356,2]
[373156587,1752887465669,-460.0,0.00018356,2]
[373156588,1752887465678,-460.0,0.00018356,2]
[373156589,1752887465688,-185.45288124,0.00018356,2]
[373156590,1752887465697,-245.41930482,0.00018356,2]
[373156591,1752887465707,-460.0,0.00018356,2]
[373156592,1752887465718,-460.0,0.00018356,2]
[373156593,1752887465728,-460.0,0.00018356,2]
[373156594,1752887465739,-460.0,0.00018356,2]
[373156595,1752887465749,-510.63328388,0.00018356,2]
[373156596,1752887465761,-460.0,0.00018356,2]
[373156597,1752887465772,-460.0,0.00018356,2]
[373156598,1752887465788,-487.10523831,0.00018356,2]
[373156599,1752887465799,-460.0,0.00018356,2]
[373156600,1752887465810,-460.0,0.00018356,2]
[373156601,1752887465821,-460.0,0.00018356,2]
[373156602,1752887465831,-468.23606961,0.00018356,2]
[373156603,1752887465841,-460.0,0.00018356,2]
[373156604,1752887465853,-229.73544386,0.00018356,2]
[373156605,1752887465867,-460.0,0.00018356,2]
[373156606,1752887465877,-489.35476866,0.00018356,2]
[373156607,1752887465886,-460.0,0.00018356,2]
[373156608,1752887465896,-460.0,0.00018356,2]
[373156609,1752887465905,-460.0,0.00018356,2]
[373156610,1752887465915,-460.0,0.00018356,2]
[373156611,1752887465924,-465.6235862,0.00018356,2]
[373156612,1752887465933,-460.0,0.00018356,2]
[373156613,1752887465943,-292.89467807,0.00018356,2]
[373156614,1752887465953,-460.0,0.00018356,2]
[373156615,1752887465963,-460.0,0.00018356,2]
[373156616,1752887465975,-460.0,0.00018356,2]
[373156617,1752887465985,-460.0,0.00018356,2]
[373156618,1752887465996,-460.0,0.00018356,2]
[373156619,1752887466005,-525.03852666,0.00018356,2]
[373156620,1752887466015,-559.02,0.00018356,2]
[373156621,1752887466025,-460.0,0.00018356,2]
[373156622,1752887466035,-770.38,0.00018356,2]
[373156623,1752887466045,-460.0,0.00018356,2]
[373156624,1752887466055,-480.33,0.00018356,2]
[373156625,1752887466066,-526.17,0.00018356,2]
[373156626,1752887466076,-460.0,0.00018356,2]
[373156627,1752887466086,-460.0,0.00018356,2]
[373156628,1752887466096,-460.0,0.00018356,2]
[373156629,1752887466106,-203.53468893,0.00018356,2]
[373156630,1752887466117,-460.0,0.00018356,2]
[373156631,1752887466127,-152.095388,0.00018356,2]
[373156632,1752887466136,-460.0,0.00018356,2]
[373156633,1752887466145,-460.0,0.00018356,2]
[373156634,1752887466154,-460.0,0.00018356,2]
[373156635,1752887466164,-460.0,0.00018356,2]
[373156636,1752887466172,-460.0,0.00018356,2]
[373156637,1752887466181,-460.0,0.00018356,2]
[373156638,1752887466191,-460.0,0.00018356,2]
[373156639,1752887466200,-460.0,0.00018356,2]
[373156640,1752887466209,-490.15,0.00018356,2]
[373156641,1752887466219,-460.0,0.00018356,2]
[373156642,1752887466228,-485.11382712,0.00018356,2]
[373156643,1752887466237,-460.0,0.00018356,2]
[373156644,1752887466247,-460.0,0.00018356,2]
[373156645,1752887466256,-460.0,0.00018356,2]
[373156646,1752887466266,-460.0,0.00018356,2]